fUSD/lending_fUSD_20251001
["ID","MTS","AMOUNT","RATE_DAILY","PERIOD"]
[388785634,1759360262171,-160.0,0.0001863,2]
[388785635,1759360262180,-160.0,0.0001863,2]
[388785636,1759360262189,-160.0,0.0001863,2]
[388785637,1759360262199,-160.0,0.0001863,2]
[388785638,1759360262217,-160.0,0.0001863,2]
[388785639,1759360262229,-160.0,0.0001863,2]
[388785640,1759360262239,-160.0,0.0001863,2]
[388785641,1759360262248,-160.0,0.0001863,2]
[388785642,1759360262259,-160.0,0.0001863,2]
[388785643,1759360262269,-160.0,0.0001863,2]
[388785644,1759360262279,-160.0,0.0001863,2]
[388785645,1759360262288,-160.0,0.0001863,2]
[388785646,1759360262298,-160.0,0.0001863,2]
[388785647,1759360262307,-160.0,0.0001863,2]
[388785648,1759360262317,-160.0,0.0001863,2]
[388785649,1759360262327,-160.0,0.0001863,2]
[388785650,1759360262337,-160.0,0.0001863,2]
[388785651,1759360262347,-160.0,0.0001863,2]
[388785652,1759360262356,-160.0,0.0001863,2]
[388785653,1759360262365,-160.0,0.0001863,2]
[388785654,1759360262375,-160.0,0.0001863,2]
[388785655,1759360262384,-160.0,0.0001863,2]
[388785656,1759360262393,-160.0,0.0001863,2]
[388785657,1759360262403,-160.0,0.0001863,2]
[388785658,1759360262412,-160.0,0.0001863,2]
[388785659,1759360262422,-160.0,0.0001863,2]
[388785660,1759360262431,-160.0,0.0001863,2]
[388785661,1759360262440,-160.0,0.0001863,2]
[388785662,1759360262450,-160.0,0.0001863,2]
[388785663,1759360262459,-172.851572,0.0001863,2]
[388785664,1759360262469,-151.0,0.00018634,2]
[388785665,1759360262479,-1269.0,0.00018634,2]
[388785666,1759360262489,-500.0,0.00018634,2]
[388785667,1759360262499,-870.0,0.00018634,2]
[388785668,1759360262509,-191.0,0.0001864,2]
[388785669,1759360262519,-500.0,0.00018642,2]
[388785670,1759360262529,-250.0,0.00018642,2]
[388785671,1759360262539,-998.18589,0.0001875,2]
[388785672,1759360262548,-500.0,0.00018767,2]
[388785673,1759360262558,-231.51,0.000188,2]
[388785674,1759360262569,-150.22,0.000188,2]
[388785675,1759360262579,-150.22,0.000188,2]
[388785676,1759360262589,-150.22,0.000188,2]
[388785677,1759360262599,-150.22,0.000188,2]
[388785678,1759360262608,-150.22,0.000188,2]
[388785679,1759360262618,-150.22,0.000188,2]
[388785680,1759360262628,-150.22,0.000188,2]
[388785681,1759360262638,-150.22,0.000188,2]
[388785682,1759360262647,-150.22,0.000188,2]
[388785683,1759360262656,-150.22,0.000188,2]
[388785684,1759360262666,-150.22,0.000188,2]
[388785685,1759360262675,-150.22,0.000188,2]
[388785686,1759360262685,-150.22,0.000188,2]
[388785687,1759360262694,-150.22,0.000188,2]
[388785688,1759360262704,-150.22,0.000188,2]
[388785689,1759360262713,-150.22,0.000188,2]
[388785690,1759360262723,-150.22,0.000188,2]
[388785691,1759360262733,-150.22,0.000188,2]
[388785692,1759360262742,-150.22,0.000188,2]
[388785693,1759360262752,-150.22,0.000188,2]
[388785694,1759360262762,-150.22,0.000188,2]
[388785695,1759360262771,-150.22,0.000188,2]
[388785696,1759360262780,-150.22,0.000188,2]
[388785697,1759360262790,-150.22,0.000188,2]
[388785698,1759360262800,-150.22,0.000188,2]
[388785699,1759360262809,-150.22,0.000188,2]
[388785700,1759360262819,-150.22,0.000188,2]
[388785701,1759360262832,-150.22,0.000188,2]
[388785702,1759360262842,-150.22,0.000188,2]
[388785703,1759360262852,-150.22,0.000188,2]
[388785704,1759360262862,-150.22,0.000188,2]
[388785705,1759360262872,-150.22,0.000188,2]
[388785706,1759360262882,-150.22,0.000188,2]
[388785707,1759360262893,-150.22,0.000188,2]
[388785708,1759360262903,-150.22,0.000188,2]
[388785709,1759360262913,-150.22,0.000188,2]
[388785710,1759360262923,-150.22,0.000188,2]
[388785711,1759360262933,-150.22,0.000188,2]
[388785712,1759360262942,-150.22,0.000188,2]
[388785713,1759360262952,-150.22,0.000188,2]
[388785714,1759360262962,-150.22,0.000188,2]
[388785715,1759360262972,-150.22,0.000188,2]
[388785716,1759360262982,-150.22,0.000188,2]
[388785717,1759360262992,-150.22,0.000188,2]
[388785718,1759360263002,-150.22,0.000188,2]
[388785719,1759360263012,-150.22,0.000188,2]
[388785720,1759360263022,-554.52,0.00018807,2]
[388785721,1759360263032,-168.0,0.0001887,2]
[388785722,1759360263042,-500.57061938,0.00018884,8]
[388785723,1759360263051,-2114.18,0.0001889,2]
[388785724,1759360263061,-175.31811306,0.000189,2]
[388785725,1759360263071,-400.0,0.000189,2]
[388785726,1759360263084,-400.0,0.000189,2]
[388785727,1759360263096,-400.0,0.000189,2]
[388785728,1759360263106,-400.0,0.000189,2]
[388785729,1759360263116,-400.0,0.000189,2]
[388785730,1759360263126,-183.8855397,0.00018904,2]
[388785731,1759360263139,-1269.0,0.00018908,2]
[388785732,1759360263149,-396.55443077,0.00018908,2]
[388785733,1759360263161,-870.0,0.00018908,2]
[388785734,1759360263171,-500.0,0.00018916,2]
[388785735,1759360263183,-1298.71724351,0.0001897,2]
[388785736,1759360263193,-370.35923647,0.00018994,2]
[388785737,1759360263204,-28203.82603474,0.00018999,2]
[388785738,1759360263214,-304.6533789,0.00019,2]
[388785739,1759360263224,-1999.99,0.00019,2]
[388785740,1759360263234,-3000.0,0.00019,2]
[388785741,1759360263243,-3000.0,0.00019,2]
[388785742,1759360263253,-2000.01,0.00019,2]
[388785743,1759360263264,-182.25674781,0.00019,10]
[388785744,1759360263274,-243123.72033761,0.00019,2]
[388785745,1759360263285,-90222.19300898,0.00019,2]
[388785746,1759360263331,-150.0,0.0001699,2]
[388785747,1759360263341,-694.34473846,0.00019,2]
[388785748,1759360263352,-927.740244,0.00019,2]
[388785749,1759360263409,-484.270022,0.00017,2]
[388785750,1759360263419,-151.0,0.00017,2]
[388785751,1759360263428,-150.0,0.00017538,2]
[388785752,1759360263963,-1241.55947751,0.00019,2]
[388785753,1759360266608,-0.00574997,0.00017264,2]
[388785754,1759360266682,-419.418692,0.00017,2]
[388785755,1759360266691,-484.270022,0.00017,2]
[388785756,1759360266701,-149.99425003,0.00017264,2]
[388785757,1759360266710,-254.11899536,0.00017538,2]
[388785758,1759360266719,-161036.86003848,0.00019,2]
[388785759,1759360266729,-187.93431843,0.00019,2]
[388785760,1759360266739,-162.54752212,0.00019,2]
[388785761,1759360266749,-160.0,0.00019,2]
[388785762,1759360266759,-2646.73967475,0.00019,2]
[388785763,1759360266768,-332.04861488,0.00019,2]
[388785764,1759360266778,-300.0,0.00019,2]
[388785765,1759360266787,-1000.0,0.00019099,2]
[388785766,1759360266796,-973.5915,0.00019099,2]
[388785767,1759360266805,-170.39,0.00019129,2]
[388785768,1759360266814,-2114.18,0.00019164,2]
[388785769,1759360266823,-2500.0,0.00019164,2]
[388785770,1759360266832,-1425.85867846,0.00019164,2]
[388785771,1759360266841,-500.0,0.00019178,2]
[388785772,1759360266850,-151.0,0.00019178,2]
[388785773,1759360266859,-151.0,0.00019178,2]
[388785774,1759360266869,-151.0,0.00019178,2]
[388785775,1759360266878,-14439.6,0.00019178,2]
[388785776,1759360266888,-1269.0,0.00019182,2]
[388785777,1759360266897,-870.0,0.00019182,2]
[388785778,1759360266907,-500.0,0.0001919,2]
[388785779,1759360266916,-500.0,0.0001919,2]
[388785780,1759360266925,-187.93431843,0.000192,2]
[388785781,1759360266934,-162.54752212,0.000192,2]
[388785782,1759360266944,-160.0,0.000192,2]
[388785783,1759360266953,-998.18589,0.0001924,2]
[388785784,1759360266962,-4841.57070209,0.000193,2]
[388785785,1759360267878,-484.270022,0.0001699,2]
[388785786,1759360267887,-484.270022,0.0001699,2]
[388785787,1759360267897,-77.19125326,0.00016998,2]
[388785788,1759360267928,-407.07876874,0.00016998,2]
[388785789,1759360267938,-484.270022,0.00016998,2]
[388785790,1759360267948,-419.418699,0.00017,2]
[388785791,1759360267957,-484.270022,0.00017,2]
[388785792,1759360267967,-484.270022,0.00017,2]
[388785793,1759360267976,-220.69246626,0.00017,2]
[388785794,1759360268004,-263.57755574,0.00017,2]
[388785795,1759360268014,-484.270022,0.00017,2]
[388785796,1759360268023,-484.270022,0.00017,2]
[388785797,1759360268032,-2381.89,0.00017471,2]
[388785798,1759360268042,-200.0,0.00017812,2]
[388785799,1759360268051,-25364.08281161,0.000193,2]
[388785800,1759360268063,-13070.57779785,0.000193,2]
[388785801,1759360268129,-484.270022,0.00017,2]
[388785802,1759360268140,-147.42997805,0.000193,2]
[388785803,1759360268973,-151.0,0.0001699,2]
[388785804,1759360268983,-484.270022,0.0001699,2]
[388785805,1759360268992,-264.709576,0.0001699,2]
[388785806,1759360269001,-151.0,0.00016998,2]
[388785807,1759360269011,-146.64685258,0.00016998,2]
[388785808,1759360269076,-264.709576,0.0001699,2]
[388785809,1759360269087,-337.62316942,0.00016998,2]
[388785810,1759360269100,-264.709576,0.00016998,2]
[388785811,1759360269111,-484.270022,0.00017,2]
[388785812,1759360269120,-151.0,0.00017,2]
[388785813,1759360269129,-484.270022,0.00017,2]
[388785814,1759360269141,-264.709576,0.00017,2]
[388785815,1759360269151,-484.270022,0.00017,2]
[388785816,1759360269160,-264.709576,0.00017,2]
[388785817,1759360269170,-484.270018,0.00017,2]
[388785818,1759360269179,-264.709576,0.00017,2]
[388785819,1759360269189,-900.0,0.00018143,2]
[388785820,1759360269199,-243.0,0.000185,2]
[388785821,1759360269209,-70851.94870943,0.000193,2]
[388785822,1759360269218,-385.0,0.000193,2]
[388785823,1759360269227,-500.57061938,0.00019319,9]
[388785824,1759360269237,-164.29,0.00019331,2]
[388785825,1759360269246,-283.73,0.00019347,2]
[388785826,1759360269255,-162.54752212,0.000194,2]
[388785827,1759360269265,-152.71736324,0.000194,2]
[388785828,1759360269274,-262.72198598,0.00019412,5]
[388785829,1759360269283,-2114.18,0.00019438,2]
[388785830,1759360269292,-634.58063492,0.00019452,2]
[388785831,1759360269302,-1269.0,0.00019456,2]
[388785832,1759360269311,-870.0,0.00019456,2]
[388785833,1759360269321,-164.25,0.000196,2]
[388785834,1759360269331,-162.54752212,0.000196,2]
[388785835,1759360269339,-277.35679052,0.00019628,2]
[388785836,1759360269348,-1084.0,0.00019647,2]
[388785837,1759360269357,-200.0,0.000197,2]
[388785838,1759360269367,-304.6533789,0.00019704,2]
[388785839,1759360269376,-554.52,0.00019712,2]
[388785840,1759360269385,-2114.18,0.00019712,2]
[388785841,1759360269395,-2965.74548665,0.00019712,2]
[388785842,1759360269407,-34.25451335,0.00019712,2]
[388785843,1759360269416,-217.153023,0.00019725,2]
[388785844,1759360269425,-781.55346867,0.00019725,2]
[388785845,1759360269440,-2602.7326959,0.00019725,2]
[388785846,1759360269452,-3272.57964343,0.00019725,2]
[388785847,1759360269461,-6656.865808,0.00019725,2]
[388785848,1759360269470,-154.377237,0.00019725,2]
[388785849,1759360269479,-154.377237,0.00019725,2]
[388785850,1759360269488,-161.07281684,0.00019725,2]
[388785851,1759360269500,-105.36639216,0.00019725,2]
[388785852,1759360269509,-266.439209,0.00019725,2]
[388785853,1759360269518,-541.265259,0.00019725,2]
[388785854,1759360269528,-1042.159479,0.00019725,2]
[388785855,1759360269536,-541.265259,0.00019725,2]
[388785856,1759360269546,-1042.159479,0.00019725,2]
[388785857,1759360269555,-111.98110806,0.00019725,2]
[388785858,1759360269566,-269.70991194,0.00019725,2]
[388785859,1759360269575,-282.28485706,0.00019725,2]
[388785860,1759360269655,-99.40616294,0.00019725,2]
[388785861,1759360269665,-156.587,0.00019726,2]
[388785862,1759360269675,-346.92554585,0.00019728,2]
[388785863,1759360269684,-407.08129121,0.00019729,2]
[388785864,1759360269695,-288.31664066,0.00019729,2]
[388785865,1759360269705,-1269.0,0.0001973,2]
[388785866,1759360269714,-870.0,0.0001973,2]
[388785867,1759360269724,-500.57061938,0.00019753,11]
[388785868,1759360269733,-162.54752212,0.000198,2]
[388785869,1759360269742,-186.0,0.0001982,2]
[388785870,1759360269752,-1000.0,0.00019899,2]
[388785871,1759360269761,-666.23162119,0.000199,2]
[388785872,1759360269772,-683.1631852,0.000199,2]
[388785873,1759360269783,-9644.48894005,0.000199,2]
[388785874,1759360269792,-206.68469358,0.000199,2]
[388785875,1759360269801,-183.8855397,0.00019907,2]
[388785876,1759360269810,-168.0,0.00019955,2]
[388785877,1759360269819,-2114.18,0.00019986,2]
[388785878,1759360269828,-2263.56783799,0.0001999,2]
[388785879,1759360269951,-1000.0,0.00019999,2]
[388785880,1759360269961,-2020.93635797,0.0002,2]
[388785881,1759360269972,-1495.8521244,0.0002,2]
[388785882,1759360269997,-264.709576,0.00016998,2]
[388785883,1759360270006,-309.58672405,0.0002,2]
[388785884,1759360275235,150.0,6.8e-05,2]
[388785885,1759360275760,150.0,7.98e-05,2]
[388785886,1759360276221,150.0,9.17e-05,2]
[388785887,1759360276303,150.0,0.0001035,2]
[388785888,1759360276485,150.0,0.0001153,2]
[388785889,1759360277573,250.0,7.48e-05,2]
[388785890,1759360279646,503.04857028,0.00030107,120]
[388785892,1759360428862,168.0,0.0001664,2]
[388785893,1759360434907,38.60520624,0.00016438,2]
[388785894,1759360434940,129.39479376,0.00016438,2]
[388785897,1759360772238,150.0,0.000113,2]
[388785898,1759360772656,150.0,0.0001248,2]
[388785899,1759360773064,150.0,0.0001367,2]
[388785900,1759360773756,150.0,0.0001485,2]
[388785901,1759360774544,150.0,0.0001603,2]
[388785902,1759360817258,160.0,0.0003013,120]
[388785904,1759360878725,-218.38381122,0.00016684,2]
[388785905,1759360883874,-194.76652254,0.00016671,2]
[388785906,1759360885742,-539.28387129,0.00016671,2]
[388785907,1759360887536,3899.0,0.0001647,2]
[388785908,1759360887863,-278.71187424,0.00016671,2]
[388785909,1759360891966,-362.77959276,0.00016671,2]
[388785910,1759360894182,-154.73,0.00016671,2]
[388785913,1759360895975,-158.0,0.00016671,2]
[388785915,1759360897833,-591.96559874,0.00016671,2]
[388785916,1759360898322,168.0,0.00016412,2]
[388785917,1759360900062,-422.32440126,0.00016671,2]
[388785918,1759360901345,168.0,0.00016503,2]
[388785919,1759360904902,-185.71,0.00016671,2]
[388785920,1759360906424,-151.36,0.00016671,2]
[388785921,1759360909732,177.8109154,0.00016588,2]
[388785922,1759360909762,463.6805516,0.00016588,2]
[388785924,1759361121283,154.77,8.049e-05,2]
[388785925,1759361153766,9139.88577978,0.0001659,2]
[388785926,1759361153795,28923.88994858,0.0001659,2]
[388785931,1759361226077,400.0,0.000164,5]
[388785932,1759361228445,800.0,0.000165,6]
[388785933,1759361231335,1200.0,0.000166,6]
[388785938,1759361297122,150.0,0.000113,2]
[388785939,1759361297716,150.0,0.0001248,2]
[388785940,1759361298223,150.0,0.0001367,2]
[388785941,1759361298592,150.0,0.0001485,2]
[388785942,1759361298945,150.0,0.0001603,2]
[388785943,1759361302720,234.0,0.00016468,2]
[388785944,1759361310144,234.0,0.00016424,2]
[388785946,1759361311821,1204.96221746,0.0001421,7]
[388785950,1759361322393,170.39,0.00016363,2]
[388785952,1759361430877,802.02,0.00015895,2]
[388785982,1759361432213,-859.36813917,0.00016671,2]
[388785983,1759361432223,-2500.0,0.00016672,2]
[388785984,1759361432233,-733.73105,0.00016673,2]
[388785985,1759361432244,-480.0,0.00016673,2]
[388785986,1759361432254,-158.0,0.00016673,2]
[388785987,1759361432264,-300.0,0.00016673,2]
[388785988,1759361432275,-1200.0,0.00016673,2]
[388785989,1759361432284,-300.0,0.00016673,2]
[388785990,1759361432293,-1528.19824283,0.00016673,2]
[388785991,1759361432331,-30.78317613,0.00016673,2]
[388785992,1759361432340,-404.1323045,0.00016674,2]
[388785993,1759361432350,-8882.6885148,0.00016674,2]
[388785994,1759361432360,-257.91778498,0.00016674,2]
[388785995,1759361432369,-2000.0,0.00016675,2]
[388785996,1759361432378,-330.99156213,0.00016678,2]
[388785997,1759361432388,-552.80140324,0.00016678,2]
[388785998,1759361432397,-3680.61618878,0.00016684,2]
[388785999,1759361432406,-174.4609,0.00016688,2]
[388786000,1759361432416,-1600.0,0.000167,6]
[388786001,1759361432426,-9211.34798985,0.00016729,2]
[388786002,1759361432435,-550.0,0.00016783,2]
[388786003,1759361432444,-9552.16786547,0.00016784,2]
[388786004,1759361432454,-168.0,0.00016788,2]
[388786006,1759361432463,-1000.0,0.000168,2]
[388786008,1759361432472,-2000.0,0.000168,6]
[388786010,1759361432481,-9905.5980765,0.00016839,2]
[388786012,1759361432491,-168.0,0.00016852,2]
[388786054,1759361432500,-6482.37744654,0.00016894,2]
[388786056,1759361432837,-168.0,0.00016894,2]
[388786058,1759361432846,-400.0,0.000169,6]
[388786060,1759361432856,-1012.7618,0.000169,2]
[388786062,1759361432865,-173.81231866,0.000169,2]
[388786063,1759361432874,-28342.90541931,0.000169,2]
[388786065,1759361432884,-152.71736324,0.000169,2]
[388786067,1759361432895,-191.51334906,0.000169,2]
[388786069,1759361432906,-169.71604083,0.000169,2]
[388786071,1759361432916,-781.66449426,0.000169,2]
[388786073,1759361432925,-500.0,0.00016973,2]
[388786075,1759361432935,-500.66950637,0.00016973,2]
[388786077,1759361432945,-500.92577692,0.00016973,2]
[388786079,1759361432955,-500.0,0.00016973,2]
[388786081,1759361432964,-500.0,0.00016973,2]
[388786083,1759361432975,-363.1088271,0.00016973,2]
[388786085,1759361432984,-500.0,0.00016973,2]
[388786087,1759361432993,-501.64555354,0.00016973,2]
[388786089,1759361433002,-500.0,0.00016973,2]
[388786091,1759361433012,-151.0,0.0001699,2]
[388786093,1759361433023,-151.0,0.0001699,2]
[388786095,1759361433032,-151.0,0.0001699,2]
[388786097,1759361433042,-500.0,0.0001699,2]
[388786099,1759361433051,-500.0,0.0001699,2]
[388786101,1759361433061,-322.6107,0.0001699,2]
[388786103,1759361433070,-200.0,0.0001699,2]
[388786105,1759361433080,-670.58624095,0.0001699,2]
[388786107,1759361433089,-151.0,0.0001699,2]
[388786109,1759361433099,-197.45673894,0.0001699,2]
[388786111,1759361433108,-151.0,0.00016997,2]
[388786113,1759361433117,-306.6878058,0.00016999,2]
[388786115,1759361433126,-300.0,0.00016999,2]
[388786117,1759361433136,-500.0,0.00016999,2]
[388786119,1759361433146,-405.38166501,0.00016999,2]
[388786120,1759361433155,-500.0,0.00016999,2]
[388786123,1759361433165,-500.0,0.00016999,2]
[388786125,1759361433175,-430.95510102,0.00016999,2]
[388786135,1759361433261,-69.04489898,0.00016999,2]
[388786136,1759361433271,-500.0,0.00016999,2]
[388786139,1759361433281,-500.0,0.00016999,2]
[388786141,1759361433290,-364.02390102,0.00016999,2]
[388786372,1759361437917,-135.97609898,0.00016999,2]
[388786373,1759361437927,-364.02390102,0.00016999,2]
[388786374,1759361437938,-135.97609898,0.00016999,2]
[388786376,1759361437948,-264.02390102,0.00016999,2]
[388786378,1759361437972,-235.97609898,0.00016999,2]
[388786379,1759361437982,-500.0,0.00016999,2]
[388786380,1759361437992,-500.0,0.00016999,2]
[388786381,1759361438001,-500.0,0.00016999,2]
[388786382,1759361438011,-500.0,0.00016999,2]
[388786383,1759361438022,-500.0,0.00016999,2]
[388786384,1759361438033,-500.0,0.00016999,2]
[388786385,1759361438043,-500.0,0.00016999,2]
[388786386,1759361438052,-229.7436331,0.00016999,2]
[388786387,1759361438062,-500.0,0.00016999,2]
[388786388,1759361438072,-500.0,0.00016999,2]
[388786389,1759361438082,-500.0,0.00016999,2]
[388786390,1759361438091,-500.0,0.00016999,2]
[388786391,1759361438101,-500.0,0.00016999,2]
[388786392,1759361438111,-500.0,0.00016999,2]
[388786393,1759361438120,-500.0,0.00016999,2]
[388786394,1759361438130,-500.0,0.00016999,2]
[388786395,1759361438139,-173.31350303,0.00016999,2]
[388786396,1759361438195,-326.68649697,0.00016999,2]
[388786397,1759361438206,-500.0,0.00016999,2]
[388786398,1759361438216,-500.0,0.00016999,2]
[388786399,1759361438225,-500.0,0.00016999,2]
[388786400,1759361438235,-500.0,0.00016999,2]
[388786401,1759361438244,-269.71169683,0.00016999,2]
[388786402,1759361438254,-180.41520616,0.00016999,2]
[388786403,1759361438264,-500.0,0.00016999,2]
[388786404,1759361438275,-379.51374024,0.00016999,2]
[388786405,1759361438285,-499.99999999,0.00016999,2]
[388786406,1759361438295,-500.0,0.00016999,2]
[388786407,1759361438305,-500.0,0.00016999,2]
[388786408,1759361438314,-500.0,0.00016999,2]
[388786409,1759361438324,-500.0,0.00016999,2]
[388786410,1759361438334,-386.4671036,0.00016999,2]
[388786411,1759361438345,-500.0,0.00016999,2]
[388786413,1759361438355,-500.0,0.00016999,2]
[388786415,1759361438364,-500.0,0.00016999,2]
[388786417,1759361438374,-500.0,0.00016999,2]
[388786419,1759361438384,-365.98871156,0.00016999,2]
[388786421,1759361438394,-11286.21704465,0.00017,2]
[388786423,1759361438406,-23691.99217571,0.00017,2]
[388786425,1759361438418,-6271.55225996,0.00017,2]
[388786427,1759361438430,-2897.91173685,0.00017,2]
[388786429,1759361438482,-2276.7610829,0.00017,2]
[388786430,1759361438494,-11845.0,0.00017,2]
[388786530,1759361440545,-35526.57920579,0.00017,2]
[388786531,1759361440557,-881.92,0.00017,2]
[388786532,1759361440698,-2368.0,0.00017,2]
[388786533,1759361440711,-6113327.61171571,0.00017,2]
[388786534,1759361440720,-160.99088278,0.00017,2]
[388786535,1759361440730,-1425.12,0.00017,7]
[388786536,1759361440739,-1878.94,0.00017014,2]
[388786537,1759361440749,-168.0,0.00017026,2]
[388786538,1759361440758,-150.0,0.00017035,2]
[388786539,1759361440768,-946.69,0.000171,2]
[388786540,1759361440779,-1613.48,0.000171,2]
[388786541,1759361440789,-545.17,0.000171,2]
[388786542,1759361440798,-150.0,0.000171,2]
[388786543,1759361440808,-545.17,0.000171,2]
[388786544,1759361440818,-150.0,0.000171,2]
[388786545,1759361440827,-545.17,0.000171,2]
[388786546,1759361440837,-167.78,0.000171,2]
[388786547,1759361440847,-1196.6,0.000171,2]
[388786548,1759361440856,-150.0,0.000171,2]
[388786549,1759361440866,-150.0,0.000171,2]
[388786550,1759361440875,-545.17,0.000171,2]
[388786551,1759361440885,-150.0,0.000171,2]
[388786552,1759361440894,-545.17,0.000171,2]
[388786553,1759361440909,-150.0,0.000171,2]
[388786554,1759361440918,-167.78,0.000171,2]
[388786555,1759361440927,-1196.6,0.000171,2]
[388786556,1759361440936,-796.42,0.000171,2]
[388786557,1759361440947,-150.0,0.000171,2]
[388786558,1759361440956,-150.0,0.000171,2]
[388786559,1759361440965,-167.78,0.000171,2]
[388786560,1759361440975,-1196.6,0.000171,2]
[388786561,1759361440986,-1196.6,0.000171,2]
[388786562,1759361440995,-1196.6,0.000171,2]
[388786563,1759361441004,-1196.6,0.000171,2]
[388786564,1759361441014,-1196.6,0.000171,2]
[388786565,1759361441024,-1196.6,0.000171,2]
[388786566,1759361441034,-412.56,0.000171,2]
[388786567,1759361441043,-412.56,0.000171,2]
[388786568,1759361441054,-1196.6,0.000171,2]
[388786569,1759361441063,-412.56,0.000171,2]
[388786570,1759361441073,-412.56,0.000171,2]
[388786571,1759361441082,-412.56,0.000171,2]
[388786572,1759361441097,-452.74,0.000171,2]
[388786573,1759361441107,-168.0,0.00017159,2]
[388786574,1759361441116,-168.0,0.00017165,2]
[388786575,1759361441126,-234.0,0.00017175,2]
[388786576,1759361441136,-150.0,0.000172,2]
[388786577,1759361441146,-167.78,0.000172,2]
[388786578,1759361441156,-1196.6,0.000172,2]
[388786579,1759361441165,-150.0,0.000172,2]
[388786580,1759361441175,-1196.6,0.000172,2]
[388786581,1759361441185,-156.0,0.0001722,2]
[388786582,1759361441195,-234.0,0.00017289,2]
[388786583,1759361441208,-234.0,0.00017307,2]
[388786584,1759361441223,-13227.40131088,0.00017349,2]
[388786585,1759361441232,-737.24914447,0.00017383,2]
[388786586,1759361441242,-30000.0,0.00017383,2]
[388786587,1759361441251,-234.0,0.00017451,2]
[388786588,1759361441261,-168.0,0.00017477,2]
[388786589,1759361441271,-173.81231863,0.00017477,2]
[388786590,1759361441281,-1000.0,0.00017521,2]
[388786591,1759361441291,-1000.0,0.00017521,2]
[388786592,1759361441300,-500.0,0.00017521,2]
[388786593,1759361441310,-230.48,0.00017527,2]
[388786594,1759361441320,-151.0,0.00017538,2]
[388786595,1759361441330,-164.3,0.00017549,2]
[388786596,1759361441339,-279.68,0.00017568,2]
[388786597,1759361441349,-332.71,0.00017585,2]
[388786598,1759361441359,-176.31,0.00017588,2]
[388786599,1759361441368,-168.0,0.0001762,2]
[388786600,1759361441378,-1000.0,0.00017676,2]
[388786601,1759361441387,-666.0,0.00017738,3]
[388786602,1759361441397,-168.0,0.00017777,2]
[388786603,1759361441407,-500.0,0.00017796,2]
[388786604,1759361441416,-2000.0,0.000178,2]
[388786605,1759361441426,-234.0,0.00017823,2]
[388786606,1759361441436,-168.0,0.00017875,2]
[388786607,1759361441445,-654.0,0.000179,2]
[388786608,1759361441454,-628.47746325,0.0001797,2]
[388786609,1759361441464,-1000.0,0.0001797,2]
[388786610,1759361441473,-126825.06335255,0.00018,2]
[388786611,1759361441483,-4333.74437804,0.00018,2]
[388786612,1759361441496,-1230.0,0.00018,2]
[388786614,1759361441506,-715.09559226,0.00018,2]
[388786616,1759361441515,-151.0,0.00018,2]
[388786618,1759361441525,-151.0,0.00018,2]